[Event "*** Titled Tuesday Blitz"]
[Site "Chess.com"]
[Date "2020.10.27"]
[Round "4"]
[White "PhileKhoob"]
[Black "ViktoriyaTarasova"]
[Result "1-0"]
[WhiteElo "2447"]
[BlackElo "2259"]
[TimeControl "180+1"]
[EndTime "10:37:35 PDT"]
[Termination "PhileKhoob won by resignation"]

1. e4 {[%clk 0:03:00.9]} 1... e5 {[%clk 0:02:59.4]} 2. Nf3 {[%clk 0:03:01]} 2...
Nc6 {[%clk 0:02:59.4]} 3. d4 {[%clk 0:03:01.9]} 3... exd4 {[%clk 0:02:57.5]} 4.
Nxd4 {[%clk 0:03:02.8]} 4... Nf6 {[%clk 0:02:57.2]} 5. Nxc6 {[%clk 0:03:03.4]}
5... bxc6 {[%clk 0:02:57.2]} 6. e5 {[%clk 0:03:04.3]} 6... Qe7 {[%clk
0:02:57.5]} 7. Qe2 {[%clk 0:03:05.2]} 7... Nd5 {[%clk 0:02:57.8]} 8. c4 {[%clk
0:03:06.1]} 8... Nb6 {[%clk 0:02:57.2]} 9. b3 {[%clk 0:03:07]} 9... a5 {[%clk
0:02:57.1]} 10. Bb2 {[%clk 0:03:06.3]} 10... a4 {[%clk 0:02:57.5]} 11. Nd2
{[%clk 0:03:06.9]} 11... axb3 {[%clk 0:02:57.6]} 12. axb3 {[%clk 0:03:07.8]}
12... Rxa1+ {[%clk 0:02:57.6]} 13. Bxa1 {[%clk 0:03:08.7]} 13... Qa3 {[%clk
0:02:57.5]} 14. Qd1 {[%clk 0:03:09.2]} 14... Bb4 {[%clk 0:02:56.3]} 15. Bd3
{[%clk 0:03:09.7]} 15... O-O {[%clk 0:02:52.5]} 16. O-O {[%clk 0:02:53.8]} 16...
Qa5 {[%clk 0:02:40.2]} 17. Ne4 {[%clk 0:02:50.5]} 17... h6 {[%clk 0:02:27.2]}
18. Qe2 {[%clk 0:02:24.2]} 18... d5 {[%clk 0:02:22.2]} 19. exd6 {[%clk
0:02:18.3]} 19... cxd6 {[%clk 0:02:20.6]} 20. Nf6+ {[%clk 0:01:45.4]} 20... gxf6
{[%clk 0:02:06.1]} 21. Qe4 {[%clk 0:01:31.4]} 21... Bf5 {[%clk 0:01:32.2]} 22.
Qxf5 {[%clk 0:01:18.5]} 22... Qxf5 {[%clk 0:01:30.4]} 23. Bxf5 {[%clk
0:01:19.4]} 23... Kg7 {[%clk 0:01:19.4]} 24. Rd1 {[%clk 0:01:19.7]} 24... Ra8
{[%clk 0:01:15]} 25. h4 {[%clk 0:01:14.3]} 25... Ra2 {[%clk 0:00:58.5]} 26. g4
{[%clk 0:01:07.5]} 26... Bc5 {[%clk 0:00:57.1]} 27. g5 {[%clk 0:01:07.4]} 27...
hxg5 {[%clk 0:00:54.8]} 28. hxg5 {[%clk 0:01:08.3]} 28... Bxf2+ {[%clk
0:00:51.9]} 29. Kh1 {[%clk 0:01:08.7]} 29... Bh4 {[%clk 0:00:35.1]} 30. Bxf6+
{[%clk 0:01:08.1]} 30... Kf8 {[%clk 0:00:30.9]} 31. Rxd6 {[%clk 0:01:08.6]}
31... Ra8 {[%clk 0:00:26.4]} 32. Rxc6 {[%clk 0:01:07.9]} 1-0

[Event "*** Titled Tuesday Blitz"]
[Site "Chess.com"]
[Date "2020.10.27"]
[Round "4"]
[White "guillembaches"]
[Black "PawnEatingZombie"]
[Result "1-0"]
[WhiteElo "2404"]
[BlackElo "2171"]
[TimeControl "180+1"]
[EndTime "10:37:35 PDT"]
[Termination "guillembaches won by resignation"]

1. e4 {[%clk 0:03:00.9]} 1... c6 {[%clk 0:02:59.9]} 2. d4 {[%clk 0:02:58.8]}
2... d5 {[%clk 0:03:00.3]} 3. exd5 {[%clk 0:02:59.2]} 3... cxd5 {[%clk
0:03:00.3]} 4. Bd3 {[%clk 0:02:59.7]} 4... Nc6 {[%clk 0:03:00.8]} 5. c3 {[%clk
0:02:59.8]} 5... Qc7 {[%clk 0:03:01.3]} 6. h3 {[%clk 0:02:59.8]} 6... Nf6 {[%clk
0:03:00.7]} 7. Nf3 {[%clk 0:02:58.2]} 7... g6 {[%clk 0:03:01]} 8. O-O {[%clk
0:02:58.2]} 8... Bf5 {[%clk 0:03:01.4]} 9. Be2 {[%clk 0:02:53.5]} 9... Bg7
{[%clk 0:02:59]} 10. Re1 {[%clk 0:02:53.8]} 10... O-O {[%clk 0:02:54.1]} 11.
Nbd2 {[%clk 0:02:53.8]} 11... h5 {[%clk 0:02:53.4]} 12. Nf1 {[%clk 0:02:53.7]}
12... Rad8 {[%clk 0:02:36.6]} 13. Ne3 {[%clk 0:02:53.6]} 13... Be4 {[%clk
0:02:32]} 14. Ng5 {[%clk 0:02:49.4]} 14... h4 {[%clk 0:02:02.4]} 15. Nxe4 {[%clk
0:02:36.9]} 15... Nxe4 {[%clk 0:01:56.1]} 16. Bf3 {[%clk 0:02:28.5]} 16... f5
{[%clk 0:01:34]} 17. Qb3 {[%clk 0:02:21.9]} 17... e6 {[%clk 0:01:31.6]} 18. Nf1
{[%clk 0:02:13.2]} 18... Kh7 {[%clk 0:01:25.3]} 19. Qd1 {[%clk 0:01:58]} 19...
e5 {[%clk 0:01:23.1]} 20. dxe5 {[%clk 0:01:53.8]} 20... Nxe5 {[%clk 0:01:22.4]}
21. Ne3 {[%clk 0:01:52.1]} 21... d4 {[%clk 0:01:04.7]} 22. cxd4 {[%clk
0:01:50.9]} 22... Rxd4 {[%clk 0:01:02.3]} 23. Qe2 {[%clk 0:01:47.1]} 23... Ng5
{[%clk 0:00:43.1]} 24. Bd5 {[%clk 0:01:35.3]} 24... Rd8 {[%clk 0:00:32.8]} 25.
Rd1 {[%clk 0:01:31.5]} 25... Rxd1+ {[%clk 0:00:13.6]} 26. Qxd1 {[%clk
0:01:32.4]} 26... Nef3+ {[%clk 0:00:07.5]} 27. gxf3 {[%clk 0:01:20.5]} 27...
Nxh3+ {[%clk 0:00:07.6]} 28. Kg2 {[%clk 0:01:16]} 28... Nf4+ {[%clk 0:00:07.6]}
29. Kf1 {[%clk 0:01:16.2]} 29... Nxd5 {[%clk 0:00:06.8]} 30. Nxd5 {[%clk
0:01:16.5]} 30... Qh2 {[%clk 0:00:07.3]} 31. Bg5 {[%clk 0:01:09.1]} 31... Rd7
{[%clk 0:00:05.3]} 32. Nf6+ {[%clk 0:01:07.9]} 32... Bxf6 {[%clk 0:00:04.8]} 33.
Qxd7+ {[%clk 0:01:08.4]} 1-0

[Event "*** Titled Tuesday Blitz"]
[Site "Chess.com"]
[Date "2020.10.27"]
[Round "4"]
[White "Resignify"]
[Black "Sokoloco"]
[Result "0-1"]
[WhiteElo "2198"]
[BlackElo "2488"]
[TimeControl "180+1"]
[EndTime "10:37:39 PDT"]
[Termination "Sokoloco won on time"]

1. e4 {[%clk 0:03:00.9]} 1... g6 {[%clk 0:02:58.3]} 2. Nf3 {[%clk 0:02:59.3]}
2... Bg7 {[%clk 0:02:58.2]} 3. c3 {[%clk 0:02:57.1]} 3... d6 {[%clk 0:02:53.7]}
4. d4 {[%clk 0:02:55.7]} 4... a6 {[%clk 0:02:53.8]} 5. a4 {[%clk 0:02:52.7]}
5... b6 {[%clk 0:02:48.8]} 6. Bd3 {[%clk 0:02:51.1]} 6... Bb7 {[%clk 0:02:48.1]}
7. O-O {[%clk 0:02:50.5]} 7... c5 {[%clk 0:02:37.2]} 8. Re1 {[%clk 0:02:47.2]}
8... cxd4 {[%clk 0:02:12]} 9. cxd4 {[%clk 0:02:44.9]} 9... Nc6 {[%clk
0:02:12.4]} 10. Nc3 {[%clk 0:02:35]} 10... Nf6 {[%clk 0:01:56.7]} 11. e5 {[%clk
0:02:14.5]} 11... dxe5 {[%clk 0:01:46.3]} 12. dxe5 {[%clk 0:02:14.1]} 12... Nd5
{[%clk 0:01:45.3]} 13. e6 {[%clk 0:02:01]} 13... fxe6 {[%clk 0:01:37.2]} 14.
Rxe6 {[%clk 0:01:47.5]} 14... Nxc3 {[%clk 0:01:32.1]} 15. bxc3 {[%clk
0:01:42.8]} 15... O-O {[%clk 0:01:25.8]} 16. Qc2 {[%clk 0:00:58]} 16... Rc8
{[%clk 0:01:09.4]} 17. Ba3 {[%clk 0:00:35.1]} 17... Qd5 {[%clk 0:00:54.4]} 18.
Rae1 {[%clk 0:00:18.3]} 18... Nd4 {[%clk 0:00:52.2]} 19. Be4 {[%clk 0:00:01.7]}
19... Qxe6 {[%clk 0:00:41.5]} 0-1

[Event "*** Titled Tuesday Blitz"]
[Site "Chess.com"]
[Date "2020.10.27"]
[Round "4"]
[White "Firouzja2003"]
[Black "Chernobay_Artem"]
[Result "1-0"]
[WhiteElo "3064"]
[BlackElo "2600"]
[TimeControl "180+1"]
[EndTime "10:37:43 PDT"]
[Termination "Firouzja2003 won by resignation"]

1. a3 {[%clk 0:03:00.9]} 1... e5 {[%clk 0:02:59]} 2. e3 {[%clk 0:02:58.3]} 2...
Nf6 {[%clk 0:02:58.5]} 3. d4 {[%clk 0:02:58.3]} 3... e4 {[%clk 0:02:58.8]} 4. c4
{[%clk 0:02:58.2]} 4... c6 {[%clk 0:02:57.3]} 5. Nc3 {[%clk 0:02:56.9]} 5... d5
{[%clk 0:02:56.7]} 6. Qb3 {[%clk 0:02:53.3]} 6... a6 {[%clk 0:02:51.3]} 7. Nh3
{[%clk 0:02:52.5]} 7... b5 {[%clk 0:02:47.4]} 8. cxd5 {[%clk 0:02:52.2]} 8...
cxd5 {[%clk 0:02:47.8]} 9. Nf4 {[%clk 0:02:52.5]} 9... Be6 {[%clk 0:02:45.6]}
10. Bd2 {[%clk 0:02:51]} 10... Be7 {[%clk 0:02:34.3]} 11. Rc1 {[%clk 0:02:48.9]}
11... O-O {[%clk 0:02:32.3]} 12. Be2 {[%clk 0:02:49.1]} 12... Nbd7 {[%clk
0:02:24.4]} 13. Nxe6 {[%clk 0:02:15.2]} 13... fxe6 {[%clk 0:02:25.3]} 14. O-O
{[%clk 0:02:15.1]} 14... Nb6 {[%clk 0:02:20.8]} 15. a4 {[%clk 0:02:13.3]} 15...
Nc4 {[%clk 0:02:05]} 16. Rfd1 {[%clk 0:02:08]} 16... Rb8 {[%clk 0:01:51.1]} 17.
axb5 {[%clk 0:02:07.2]} 17... axb5 {[%clk 0:01:51.6]} 18. Ra1 {[%clk 0:02:05.5]}
18... Qd7 {[%clk 0:01:40.1]} 19. Be1 {[%clk 0:01:59.3]} 19... Bd6 {[%clk
0:01:35.3]} 20. Ra6 {[%clk 0:01:53.4]} 20... Ne8 {[%clk 0:01:24.1]} 21. Rda1
{[%clk 0:01:50.8]} 21... Nc7 {[%clk 0:01:21.9]} 22. Ra7 {[%clk 0:01:50.9]} 22...
Qc6 {[%clk 0:01:19.5]} 23. g3 {[%clk 0:01:47.4]} 23... Rf7 {[%clk 0:01:12.9]}
24. Qc2 {[%clk 0:01:32.7]} 24... Rbf8 {[%clk 0:01:02.3]} 25. b3 {[%clk
0:01:29.1]} 25... Na3 {[%clk 0:00:45.6]} 26. Qb2 {[%clk 0:01:24.9]} 26... b4
{[%clk 0:00:43.1]} 27. Na4 {[%clk 0:01:23.4]} 27... Ncb5 {[%clk 0:00:16.6]} 28.
Rxf7 {[%clk 0:01:23.1]} 28... Rxf7 {[%clk 0:00:16.4]} 29. Rc1 {[%clk 0:01:23.8]}
29... Qe8 {[%clk 0:00:15.4]} 30. Nc5 {[%clk 0:01:23.7]} 30... Bxc5 {[%clk
0:00:08.1]} 31. dxc5 {[%clk 0:01:23.9]} 31... Nc7 {[%clk 0:00:04.8]} 32. Bxb4
{[%clk 0:01:24.1]} 32... Nab5 {[%clk 0:00:05.2]} 33. Ba5 {[%clk 0:01:24.8]}
33... Qf8 {[%clk 0:00:05]} 34. Bf1 {[%clk 0:01:22.5]} 34... h5 {[%clk
0:00:04.5]} 35. b4 {[%clk 0:01:22]} 35... h4 {[%clk 0:00:04.7]} 36. Bxc7 {[%clk
0:01:22.7]} 36... Nxc7 {[%clk 0:00:04.6]} 37. b5 {[%clk 0:01:23.4]} 37... hxg3
{[%clk 0:00:04.8]} 38. hxg3 {[%clk 0:01:23.7]} 38... e5 {[%clk 0:00:04.4]} 39.
b6 {[%clk 0:01:23.7]} 39... Ne8 {[%clk 0:00:03.9]} 40. b7 {[%clk 0:01:23.6]} 1-0

[Event "*** Titled Tuesday Blitz"]
[Site "Chess.com"]
[Date "2020.10.27"]
[Round "4"]
[White "German_Bazeev"]
[Black "Dream2World_Number1"]
[Result "1-0"]
[WhiteElo "2769"]
[BlackElo "2072"]
[TimeControl "180+1"]
[EndTime "10:37:44 PDT"]
[Termination "German_Bazeev won by resignation"]

1. d4 {[%clk 0:03:00.9]} 1... Nf6 {[%clk 0:03:00.3]} 2. Nf3 {[%clk 0:03:00.4]}
2... e6 {[%clk 0:03:00.6]} 3. c4 {[%clk 0:03:00]} 3... b6 {[%clk 0:03:00.9]} 4.
Nc3 {[%clk 0:02:59.9]} 4... Bb7 {[%clk 0:03:01.2]} 5. Bg5 {[%clk 0:03:00.5]}
5... Be7 {[%clk 0:02:59.6]} 6. e3 {[%clk 0:02:59.9]} 6... Ne4 {[%clk 0:02:58.7]}
7. Bxe7 {[%clk 0:02:57.5]} 7... Qxe7 {[%clk 0:02:59.6]} 8. Qc2 {[%clk 0:02:56]}
8... f5 {[%clk 0:02:58.4]} 9. Bd3 {[%clk 0:02:46.5]} 9... Nxc3 {[%clk
0:02:57.1]} 10. Qxc3 {[%clk 0:02:45.6]} 10... O-O {[%clk 0:02:57.3]} 11. O-O-O
{[%clk 0:02:41.4]} 11... d6 {[%clk 0:02:49.9]} 12. Rhe1 {[%clk 0:02:35.5]} 12...
Nd7 {[%clk 0:02:48.9]} 13. e4 {[%clk 0:02:34.7]} 13... fxe4 {[%clk 0:02:37.6]}
14. Bxe4 {[%clk 0:02:35.6]} 14... Bxe4 {[%clk 0:02:38.2]} 15. Rxe4 {[%clk
0:02:36.5]} 15... Rae8 {[%clk 0:02:38.8]} 16. Rde1 {[%clk 0:02:35.5]} 16... Qf6
{[%clk 0:02:31.5]} 17. Qe3 {[%clk 0:02:30.7]} 17... e5 {[%clk 0:02:23.5]} 18.
Qd2 {[%clk 0:02:21]} 18... Qf7 {[%clk 0:02:03.1]} 19. dxe5 {[%clk 0:01:51.9]}
19... Nxe5 {[%clk 0:02:00.4]} 20. Nxe5 {[%clk 0:01:51.4]} 20... Rxe5 {[%clk
0:01:58.7]} 21. f3 {[%clk 0:01:50.1]} 21... Rfe8 {[%clk 0:01:50.1]} 22. Qd5
{[%clk 0:01:11.9]} 22... Rxe4 {[%clk 0:01:22.3]} 23. Rxe4 {[%clk 0:01:09.6]}
23... Qxd5 {[%clk 0:01:17.7]} 24. Rxe8+ {[%clk 0:01:08.8]} 24... Kf7 {[%clk
0:01:17.7]} 25. cxd5 {[%clk 0:00:59.3]} 25... Kxe8 {[%clk 0:01:17.8]} 26. Kd2
{[%clk 0:00:59.4]} 26... Ke7 {[%clk 0:01:15.3]} 27. Kd3 {[%clk 0:00:54.9]} 27...
Kf6 {[%clk 0:01:13.5]} 28. Ke4 {[%clk 0:00:50.4]} 28... g5 {[%clk 0:01:08.8]}
29. g4 {[%clk 0:00:33.2]} 29... h6 {[%clk 0:01:05.1]} 30. f4 {[%clk 0:00:33.2]}
30... Kg6 {[%clk 0:01:03.3]} 31. Kf3 {[%clk 0:00:32.3]} 31... Kf6 {[%clk
0:01:01.5]} 32. Kg3 {[%clk 0:00:31.9]} 32... Kg6 {[%clk 0:01:00.6]} 33. h4
{[%clk 0:00:31.7]} 33... Kf6 {[%clk 0:00:59.6]} 34. fxg5+ {[%clk 0:00:30.3]}
34... hxg5 {[%clk 0:00:59.9]} 35. hxg5+ {[%clk 0:00:31.2]} 35... Kxg5 {[%clk
0:00:59.9]} 36. Kf3 {[%clk 0:00:31.8]} 1-0

[Event "*** Titled Tuesday Blitz"]
[Site "Chess.com"]
[Date "2020.10.27"]
[Round "4"]
[White "KuzubovYuriy"]
[Black "Shahinyan_ChessMood"]
[Result "0-1"]
[WhiteElo "2888"]
[BlackElo "2776"]
[TimeControl "180+1"]
[EndTime "10:37:50 PDT"]
[Termination "Shahinyan_ChessMood won by resignation"]

1. d4 {[%clk 0:03:00.9]} 1... Nf6 {[%clk 0:03:00.2]} 2. c4 {[%clk 0:03:01.2]}
2... c5 {[%clk 0:03:00.6]} 3. d5 {[%clk 0:03:01]} 3... g6 {[%clk 0:03:01.2]} 4.
Nc3 {[%clk 0:03:00.3]} 4... Bg7 {[%clk 0:03:01.7]} 5. e4 {[%clk 0:03:00.9]} 5...
d6 {[%clk 0:03:02.2]} 6. Bd3 {[%clk 0:03:00.5]} 6... O-O {[%clk 0:03:02.2]} 7.
h3 {[%clk 0:03:00.9]} 7... e6 {[%clk 0:03:01.2]} 8. Nf3 {[%clk 0:03:01.4]} 8...
exd5 {[%clk 0:02:59.2]} 9. exd5 {[%clk 0:03:02.3]} 9... Re8+ {[%clk 0:02:59.3]}
10. Be3 {[%clk 0:03:02.8]} 10... a6 {[%clk 0:02:59.9]} 11. a4 {[%clk 0:02:59.9]}
11... Nbd7 {[%clk 0:03:00]} 12. O-O {[%clk 0:02:59.9]} 12... Nh5 {[%clk
0:03:00.2]} 13. Qd2 {[%clk 0:02:55.6]} 13... Ne5 {[%clk 0:02:57.2]} 14. Nxe5
{[%clk 0:02:53.3]} 14... Rxe5 {[%clk 0:02:58.1]} 15. Rfe1 {[%clk 0:02:27.5]}
15... Qh4 {[%clk 0:02:52.5]} 16. Bf1 {[%clk 0:02:20.2]} 16... Bd7 {[%clk
0:02:47.5]} 17. Kh2 {[%clk 0:01:10.6]} 17... Rae8 {[%clk 0:02:38.8]} 18. g3
{[%clk 0:01:08.9]} 18... Qe7 {[%clk 0:02:30.9]} 19. Bg2 {[%clk 0:00:46.6]} 19...
Bh6 {[%clk 0:02:15.6]} 20. Nd1 {[%clk 0:00:34.5]} 20... Bxe3 {[%clk 0:01:52.9]}
21. Rxe3 {[%clk 0:00:33.2]} 21... f5 {[%clk 0:01:52.3]} 22. Rxe5 {[%clk
0:00:25.7]} 22... Qxe5 {[%clk 0:01:53.2]} 23. Ra3 {[%clk 0:00:20.5]} 23... f4
{[%clk 0:01:52.4]} 24. Bf3 {[%clk 0:00:19.5]} 24... fxg3+ {[%clk 0:01:51.4]} 25.
Kg2 {[%clk 0:00:17.7]} 25... Nf4+ {[%clk 0:01:44.8]} 26. Kxg3 {[%clk 0:00:17]}
26... Nxh3+ {[%clk 0:01:39.7]} 27. Kg2 {[%clk 0:00:16.4]} 27... Nf4+ {[%clk
0:01:40.3]} 28. Kg1 {[%clk 0:00:15.6]} 28... Qg5+ {[%clk 0:01:38.4]} 29. Kh2
{[%clk 0:00:15.2]} 29... Qh4+ {[%clk 0:01:38.2]} 30. Kg1 {[%clk 0:00:15.7]}
30... Re5 {[%clk 0:01:28.6]} 31. Bg2 {[%clk 0:00:15.8]} 31... Rg5 {[%clk
0:01:25.3]} 32. Rg3 {[%clk 0:00:14.5]} 32... Rxg3 {[%clk 0:01:23.8]} 33. fxg3
{[%clk 0:00:15.4]} 33... Qxg3 {[%clk 0:01:24.3]} 34. Ne3 {[%clk 0:00:15.3]}
34... Nxg2 {[%clk 0:01:19.6]} 35. Nxg2 {[%clk 0:00:14.9]} 35... Bh3 {[%clk
0:01:19.2]} 36. a5 {[%clk 0:00:13.2]} 36... Qxg2+ {[%clk 0:01:20.1]} 37. Qxg2
{[%clk 0:00:12.1]} 37... Bxg2 {[%clk 0:01:21]} 38. Kxg2 {[%clk 0:00:12.9]} 38...
Kf7 {[%clk 0:01:21.6]} 39. Kg3 {[%clk 0:00:11.8]} 39... Kf6 {[%clk 0:01:21.1]}
40. Kg4 {[%clk 0:00:11.4]} 40... h5+ {[%clk 0:01:21.1]} 41. Kf4 {[%clk
0:00:11.2]} 41... g5+ {[%clk 0:01:21.1]} 42. Ke4 {[%clk 0:00:11.8]} 42... h4
{[%clk 0:01:21.3]} 43. b4 {[%clk 0:00:12.4]} 43... cxb4 {[%clk 0:01:21.5]} 44.
c5 {[%clk 0:00:12.3]} 44... dxc5 {[%clk 0:01:21.8]} 0-1

[Event "*** Titled Tuesday Blitz"]
[Site "Chess.com"]
[Date "2020.10.27"]
[Round "4"]
[White "ChessAurochs"]
[Black "Gabix_94"]
[Result "1/2-1/2"]
[WhiteElo "2544"]
[BlackElo "2787"]
[TimeControl "180+1"]
[EndTime "10:37:51 PDT"]
[Termination "Game drawn by repetition"]

1. e4 {[%clk 0:03:00.9]} 1... c5 {[%clk 0:02:58.5]} 2. Nf3 {[%clk 0:03:00.2]}
2... e6 {[%clk 0:02:58.9]} 3. d4 {[%clk 0:02:59.5]} 3... cxd4 {[%clk 0:02:59.4]}
4. Nxd4 {[%clk 0:03:00.4]} 4... Nc6 {[%clk 0:03:00]} 5. Nc3 {[%clk 0:02:59]}
5... Qc7 {[%clk 0:03:00.4]} 6. a3 {[%clk 0:02:53.4]} 6... a6 {[%clk 0:02:59.9]}
7. Be3 {[%clk 0:02:52.8]} 7... b5 {[%clk 0:03:00.2]} 8. Nxc6 {[%clk 0:02:52.2]}
8... Qxc6 {[%clk 0:03:01.1]} 9. Be2 {[%clk 0:02:40.7]} 9... Bb7 {[%clk
0:03:00.3]} 10. O-O {[%clk 0:02:37.9]} 10... Rc8 {[%clk 0:02:58.7]} 11. Qd3
{[%clk 0:02:21.3]} 11... Bc5 {[%clk 0:02:52.8]} 12. Rad1 {[%clk 0:02:18]} 12...
Bxe3 {[%clk 0:02:48.4]} 13. Qxe3 {[%clk 0:02:18.9]} 13... Ne7 {[%clk 0:02:38.7]}
14. f4 {[%clk 0:01:54.5]} 14... O-O {[%clk 0:02:35.3]} 15. Bf3 {[%clk
0:01:52.3]} 15... d6 {[%clk 0:02:25.8]} 16. f5 {[%clk 0:01:35.6]} 16... Qc7
{[%clk 0:02:08.5]} 17. fxe6 {[%clk 0:01:04.5]} 17... fxe6 {[%clk 0:02:07.6]} 18.
Bg4 {[%clk 0:01:04.3]} 18... Rxf1+ {[%clk 0:01:56.5]} 19. Rxf1 {[%clk
0:01:02.4]} 19... Qc4 {[%clk 0:01:56.8]} 20. b3 {[%clk 0:00:35.4]} 20... Qc7
{[%clk 0:01:30.3]} 21. Bxe6+ {[%clk 0:00:34.8]} 21... Kh8 {[%clk 0:01:30.9]} 22.
Bxc8 {[%clk 0:00:34.8]} 22... Qxc8 {[%clk 0:01:31.4]} 23. Qd4 {[%clk 0:00:26.3]}
23... Ng8 {[%clk 0:01:26.9]} 24. h3 {[%clk 0:00:20.6]} 24... h6 {[%clk
0:01:23.6]} 25. Rf7 {[%clk 0:00:16.7]} 25... Nf6 {[%clk 0:01:23.2]} 26. e5
{[%clk 0:00:14.9]} 26... dxe5 {[%clk 0:01:21.3]} 27. Qxe5 {[%clk 0:00:15.8]}
27... Qc6 {[%clk 0:01:20.1]} 28. Qg3 {[%clk 0:00:08.9]} 28... Nh5 {[%clk
0:01:14.6]} 29. Qg4 {[%clk 0:00:07.9]} 29... Qc5+ {[%clk 0:01:06]} 30. Kh2
{[%clk 0:00:06.3]} 30... Qe5+ {[%clk 0:01:04.8]} 31. Kg1 {[%clk 0:00:05]} 31...
Qc5+ {[%clk 0:00:58.3]} 32. Kh2 {[%clk 0:00:04.7]} 32... Qe5+ {[%clk 0:00:57.8]}
33. Kg1 {[%clk 0:00:04.8]} 33... Qc5+ {[%clk 0:00:56]} 1/2-1/2

[Event "*** Titled Tuesday Blitz"]
[Site "Chess.com"]
[Date "2020.10.27"]
[Round "4"]
[White "GukeshDommaraju"]
[Black "GothamChess"]
[Result "1-0"]
[WhiteElo "2831"]
[BlackElo "2612"]
[TimeControl "180+1"]
[EndTime "10:37:54 PDT"]
[Termination "GukeshDommaraju won by resignation"]

1. c4 {[%clk 0:03:00.9]} 1... b6 {[%clk 0:02:58.2]} 2. Nc3 {[%clk 0:02:58.4]}
2... Bb7 {[%clk 0:02:58.6]} 3. e4 {[%clk 0:02:58.6]} 3... e6 {[%clk 0:02:57.4]}
4. a3 {[%clk 0:02:56.3]} 4... g6 {[%clk 0:02:50.1]} 5. d4 {[%clk 0:02:55.5]}
5... Bg7 {[%clk 0:02:50.3]} 6. Nf3 {[%clk 0:02:55.5]} 6... Ne7 {[%clk
0:02:50.3]} 7. g3 {[%clk 0:02:46.3]} 7... O-O {[%clk 0:02:49.5]} 8. Bg2 {[%clk
0:02:46.5]} 8... d6 {[%clk 0:02:49.7]} 9. O-O {[%clk 0:02:46.8]} 9... e5 {[%clk
0:02:48.5]} 10. d5 {[%clk 0:02:44.5]} 10... h6 {[%clk 0:02:47.9]} 11. Ne1 {[%clk
0:02:41]} 11... f5 {[%clk 0:02:45.9]} 12. f3 {[%clk 0:02:39.8]} 12... f4 {[%clk
0:02:45]} 13. Nd3 {[%clk 0:02:34.8]} 13... fxg3 {[%clk 0:02:44.8]} 14. hxg3
{[%clk 0:02:34.1]} 14... a5 {[%clk 0:02:43.2]} 15. Be3 {[%clk 0:02:33]} 15...
Nd7 {[%clk 0:02:40.8]} 16. Qd2 {[%clk 0:02:32.5]} 16... g5 {[%clk 0:02:37.6]}
17. b4 {[%clk 0:02:32.5]} 17... Ba6 {[%clk 0:02:29.4]} 18. Nb5 {[%clk
0:02:22.5]} 18... Ng6 {[%clk 0:02:25.5]} 19. Bh3 {[%clk 0:02:21.7]} 19... Bc8
{[%clk 0:02:20.5]} 20. c5 {[%clk 0:01:45.4]} 20... axb4 {[%clk 0:01:54.5]} 21.
cxd6 {[%clk 0:01:40.1]} 21... cxd6 {[%clk 0:01:47.9]} 22. Nxd6 {[%clk
0:01:39.7]} 22... bxa3 {[%clk 0:01:36.8]} 23. Nb4 {[%clk 0:01:30.9]} 23... Ba6
{[%clk 0:01:18.7]} 24. Nxa6 {[%clk 0:01:21.3]} 24... Rxa6 {[%clk 0:01:19.6]} 25.
Qd3 {[%clk 0:01:19.6]} 25... Nb8 {[%clk 0:01:01.3]} 26. Be6+ {[%clk 0:01:16.8]}
26... Kh7 {[%clk 0:00:57.5]} 27. Nf5 {[%clk 0:01:14.3]} 27... a2 {[%clk
0:00:43.9]} 28. Rfc1 {[%clk 0:01:05]} 28... Ne7 {[%clk 0:00:38.8]} 29. d6 {[%clk
0:00:57.4]} 29... Nec6 {[%clk 0:00:22.2]} 30. Rxc6 {[%clk 0:00:53.7]} 30... Nxc6
{[%clk 0:00:22.5]} 31. Qxa6 {[%clk 0:00:53.8]} 31... Nb4 {[%clk 0:00:18.4]} 32.
Qc4 {[%clk 0:00:47.8]} 1-0

[Event "*** Titled Tuesday Blitz"]
[Site "Chess.com"]
[Date "2020.10.27"]
[Round "4"]
[White "canary2016"]
[Black "Andrakhanova"]
[Result "0-1"]
[WhiteElo "1956"]
[BlackElo "2246"]
[TimeControl "180+1"]
[EndTime "10:37:54 PDT"]
[Termination "Andrakhanova won by checkmate"]

1. d4 {[%clk 0:03:00.9]} 1... d5 {[%clk 0:03:00]} 2. c4 {[%clk 0:03:00.6]} 2...
e6 {[%clk 0:03:00.3]} 3. Nf3 {[%clk 0:02:59.4]} 3... c6 {[%clk 0:03:00.4]} 4. g3
{[%clk 0:02:58.8]} 4... dxc4 {[%clk 0:02:59.8]} 5. Bg2 {[%clk 0:02:58.3]} 5...
Nd7 {[%clk 0:02:58.2]} 6. O-O {[%clk 0:02:58.2]} 6... b5 {[%clk 0:02:57.5]} 7.
Qc2 {[%clk 0:02:58.2]} 7... Bb7 {[%clk 0:02:56.8]} 8. a4 {[%clk 0:02:58.4]} 8...
a6 {[%clk 0:02:55.5]} 9. Nc3 {[%clk 0:02:55.6]} 9... Ngf6 {[%clk 0:02:53.8]} 10.
Rd1 {[%clk 0:02:50.3]} 10... Be7 {[%clk 0:02:50.5]} 11. Ne5 {[%clk 0:02:49.7]}
11... Nxe5 {[%clk 0:02:48.5]} 12. dxe5 {[%clk 0:02:49.5]} 12... Nd7 {[%clk
0:02:42.7]} 13. axb5 {[%clk 0:02:44.8]} 13... axb5 {[%clk 0:02:43.6]} 14. Bf4
{[%clk 0:02:38.1]} 14... Rxa1 {[%clk 0:02:41.5]} 15. Rxa1 {[%clk 0:02:37.5]}
15... Qc7 {[%clk 0:02:37.7]} 16. Ra7 {[%clk 0:02:29.5]} 16... Qb6 {[%clk
0:02:32]} 17. Be3 {[%clk 0:02:24.3]} 17... Bc5 {[%clk 0:02:31.2]} 18. Bxc5
{[%clk 0:02:14.8]} 18... Nxc5 {[%clk 0:02:32.1]} 19. Ra1 {[%clk 0:02:10.7]}
19... O-O {[%clk 0:02:31.7]} 20. Ne4 {[%clk 0:02:08.4]} 20... Nxe4 {[%clk
0:02:17.3]} 21. Bxe4 {[%clk 0:02:07.9]} 21... g6 {[%clk 0:02:17.5]} 22. Rd1
{[%clk 0:02:03.8]} 22... Rd8 {[%clk 0:02:12.2]} 23. Rd6 {[%clk 0:01:48.9]} 23...
Rxd6 {[%clk 0:02:08.2]} 24. exd6 {[%clk 0:01:48.5]} 24... Qd4 {[%clk 0:02:07.6]}
25. e3 {[%clk 0:01:10.1]} 25... Qxd6 {[%clk 0:02:06.1]} 26. b3 {[%clk
0:01:10.2]} 26... cxb3 {[%clk 0:02:03.9]} 27. Qxb3 {[%clk 0:01:08.6]} 27... f5
{[%clk 0:01:58.5]} 28. Bb1 {[%clk 0:01:04.9]} 28... b4 {[%clk 0:01:54]} 29. Qa4
{[%clk 0:01:00]} 29... Kf7 {[%clk 0:01:50.3]} 30. Ba2 {[%clk 0:00:59.5]} 30...
c5 {[%clk 0:01:45]} 31. Qa7 {[%clk 0:00:56.5]} 31... Qc6 {[%clk 0:01:44.2]} 32.
Kf1 {[%clk 0:00:46.7]} 32... b3 {[%clk 0:01:40.7]} 33. Bb1 {[%clk 0:00:36.6]}
33... c4 {[%clk 0:01:25.2]} 34. h4 {[%clk 0:00:12.7]} 34... c3 {[%clk
0:01:20.6]} 35. Ke2 {[%clk 0:00:10.3]} 35... c2 {[%clk 0:01:19.4]} 36. Bxc2
{[%clk 0:00:09.5]} 36... bxc2 {[%clk 0:01:20.3]} 37. Qd4 {[%clk 0:00:05]} 37...
c1=Q {[%clk 0:01:19.1]} 38. Qd8 {[%clk 0:00:04.8]} 38... Qf3+ {[%clk 0:01:18.8]}
39. Kd3 {[%clk 0:00:01.8]} 39... Qcd1+ {[%clk 0:01:18.3]} 40. Kc3 {[%clk
0:00:01.8]} 40... Qxd8 {[%clk 0:01:17.6]} 41. Kb2 {[%clk 0:00:02.7]} 41... Qc6
{[%clk 0:01:16.6]} 42. Ka2 {[%clk 0:00:02.7]} 42... Qdb6 {[%clk 0:01:17.4]} 43.
Ka1 {[%clk 0:00:02.5]} 43... Qa4# {[%clk 0:01:17.4]} 0-1